[Event "Early-Titled-Tuesday-Blitz-March-12-2024"]
[Site "Chess.com"]
[Date "2024.03.12"]
[Round "9"]
[White "ViktoriyaTarasova"]
[Black "Cryptinz"]
[Result "0-1"]
[WhiteElo "2320"]
[BlackElo "2514"]
[TimeControl "180+1"]
[EndTime "9:43:06 PDT"]
[Termination "Cryptinz won by checkmate"]

1. d4 {[%clk 0:03:00.9]} 1... d5 {[%clk 0:02:59.6]} 2. c4 {[%clk 0:03:00.8]}
2... c6 {[%clk 0:02:59.7]} 3. Nf3 {[%clk 0:03:00.7]} 3... Nf6 {[%clk 0:02:59.7]}
4. Nc3 {[%clk 0:03:00.6]} 4... dxc4 {[%clk 0:03:00.3]} 5. a4 {[%clk 0:03:00.2]}
5... Bf5 {[%clk 0:03:00.7]} 6. Ne5 {[%clk 0:03:00.2]} 6... Nbd7 {[%clk
0:03:00.6]} 7. Nxc4 {[%clk 0:02:59.2]} 7... Nb6 {[%clk 0:03:00.8]} 8. Ne5 {[%clk
0:02:58.9]} 8... a5 {[%clk 0:03:01.2]} 9. g3 {[%clk 0:02:57]} 9... Nfd7 {[%clk
0:03:00.7]} 10. Nxd7 {[%clk 0:02:52.7]} 10... Nxd7 {[%clk 0:03:01.6]} 11. Bg2
{[%clk 0:02:52.8]} 11... e6 {[%clk 0:03:01.1]} 12. O-O {[%clk 0:02:52.1]} 12...
Bb4 {[%clk 0:03:01.5]} 13. e4 {[%clk 0:02:52.6]} 13... Bg6 {[%clk 0:03:01]} 14.
Be3 {[%clk 0:02:51.3]} 14... O-O {[%clk 0:03:00.5]} 15. f4 {[%clk 0:02:51.6]}
15... Nf6 {[%clk 0:02:56.9]} 16. f5 {[%clk 0:02:27.2]} 16... exf5 {[%clk
0:02:57.8]} 17. exf5 {[%clk 0:02:27.2]} 17... Bh5 {[%clk 0:02:57.9]} 18. Bf3
{[%clk 0:02:27.3]} 18... Re8 {[%clk 0:02:34.4]} 19. Bf2 {[%clk 0:02:21.1]} 19...
Bxf3 {[%clk 0:02:21.6]} 20. Qxf3 {[%clk 0:02:20.8]} 20... Qd7 {[%clk 0:02:02.9]}
21. Rfe1 {[%clk 0:02:18.9]} 21... Rad8 {[%clk 0:02:01.1]} 22. Kg2 {[%clk
0:02:11.3]} 22... h6 {[%clk 0:01:56.7]} 23. h3 {[%clk 0:02:11.1]} 23... Kh7
{[%clk 0:01:45]} 24. g4 {[%clk 0:02:10]} 24... b5 {[%clk 0:01:13.9]} 25. axb5
{[%clk 0:01:52.8]} 25... cxb5 {[%clk 0:01:14.8]} 26. Qd3 {[%clk 0:01:53.1]}
26... Nd5 {[%clk 0:01:08.1]} 27. Bg3 {[%clk 0:01:37.9]} 27... f6 {[%clk
0:01:00]} 28. Kh2 {[%clk 0:01:18.7]} 28... Bxc3 {[%clk 0:00:47.1]} 29. bxc3
{[%clk 0:01:17.6]} 29... a4 {[%clk 0:00:41.7]} 30. Rxe8 {[%clk 0:00:45.9]} 30...
Rxe8 {[%clk 0:00:42.6]} 31. c4 {[%clk 0:00:46.4]} 31... bxc4 {[%clk 0:00:38.1]}
32. Qxc4 {[%clk 0:00:45.2]} 32... Ra8 {[%clk 0:00:20.2]} 33. Ra3 {[%clk
0:00:39.1]} 33... Nb6 {[%clk 0:00:18.4]} 34. Qc5 {[%clk 0:00:35]} 34... Rc8
{[%clk 0:00:14.7]} 35. Qxb6 {[%clk 0:00:23.3]} 35... Rc2+ {[%clk 0:00:15.6]} 36.
Kg1 {[%clk 0:00:23.8]} 36... Qd5 {[%clk 0:00:15.7]} 37. Bf2 {[%clk 0:00:10.2]}
37... Rc1+ {[%clk 0:00:15.8]} 38. Kh2 {[%clk 0:00:09.5]} 38... Rh1+ {[%clk
0:00:13.2]} 39. Kg3 {[%clk 0:00:09.6]} 39... Rd1 {[%clk 0:00:11.1]} 40. Rf3
{[%clk 0:00:07.7]} 40... a3 {[%clk 0:00:10.4]} 41. Qa7 {[%clk 0:00:06.2]} 41...
Qd6+ {[%clk 0:00:10]} 42. Kg2 {[%clk 0:00:05.9]} 42... Qd5 {[%clk 0:00:09.4]}
43. h4 {[%clk 0:00:05.1]} 43... Rd3 {[%clk 0:00:09.3]} 44. g5 {[%clk 0:00:01.8]}
44... Qxf3+ {[%clk 0:00:09.4]} 45. Kf1 {[%clk 0:00:02.4]} 45... Rd1# {[%clk
0:00:09.7]} 0-1

[Event "Early-Titled-Tuesday-Blitz-March-12-2024"]
[Site "Chess.com"]
[Date "2024.03.12"]
[Round "9"]
[White "imdvb6307"]
[Black "NikitaShnadrygin"]
[Result "1/2-1/2"]
[WhiteElo "2494"]
[BlackElo "2656"]
[TimeControl "180+1"]
[EndTime "9:43:08 PDT"]
[Termination "Game drawn by repetition"]

1. d4 {[%clk 0:03:00.9]} 1... d5 {[%clk 0:03:00]} 2. Nf3 {[%clk 0:03:01.1]} 2...
Nc6 {[%clk 0:03:00.9]} 3. e3 {[%clk 0:02:59.6]} 3... Bg4 {[%clk 0:03:01.3]} 4.
c4 {[%clk 0:02:46.8]} 4... e5 {[%clk 0:02:57.7]} 5. cxd5 {[%clk 0:02:42.9]} 5...
Qxd5 {[%clk 0:02:57.5]} 6. Nc3 {[%clk 0:02:42.9]} 6... Bb4 {[%clk 0:02:57.6]} 7.
Be2 {[%clk 0:02:00.1]} 7... exd4 {[%clk 0:02:54]} 8. exd4 {[%clk 0:01:51.6]}
8... Bxf3 {[%clk 0:02:50.4]} 9. Bxf3 {[%clk 0:01:51]} 9... Qc4 {[%clk
0:02:50.5]} 10. Bxc6+ {[%clk 0:01:13]} 10... bxc6 {[%clk 0:02:50]} 11. Qe2+
{[%clk 0:01:11.8]} 11... Qxe2+ {[%clk 0:02:50.3]} 12. Kxe2 {[%clk 0:01:11.8]}
12... Nf6 {[%clk 0:02:45.5]} 13. Bg5 {[%clk 0:00:58.1]} 13... Bxc3 {[%clk
0:02:12.6]} 14. Bxf6 {[%clk 0:00:57.3]} 14... Bxb2 {[%clk 0:02:02.9]} 15. Rab1
{[%clk 0:00:57.2]} 15... gxf6 {[%clk 0:01:36.3]} 16. Rxb2 {[%clk 0:00:57]} 16...
Kd7 {[%clk 0:01:35.9]} 17. Rc1 {[%clk 0:00:54.1]} 17... Rab8 {[%clk 0:01:35.6]}
18. Rbc2 {[%clk 0:00:53.4]} 18... Rb6 {[%clk 0:01:35.6]} 19. d5 {[%clk
0:00:53.1]} 19... Re8+ {[%clk 0:01:29.5]} 20. Kf3 {[%clk 0:00:50]} 20... Re5
{[%clk 0:01:03]} 21. dxc6+ {[%clk 0:00:48.4]} 21... Kd6 {[%clk 0:01:01]} 22.
Rd1+ {[%clk 0:00:47.2]} 22... Rd5 {[%clk 0:01:00.2]} 23. Rxd5+ {[%clk
0:00:15.8]} 23... Kxd5 {[%clk 0:01:01.1]} 24. Rd2+ {[%clk 0:00:16.1]} 24... Ke6
{[%clk 0:00:50.3]} 25. Rd4 {[%clk 0:00:16.1]} 25... Rxc6 {[%clk 0:00:49.5]} 26.
Ra4 {[%clk 0:00:15.5]} 26... a6 {[%clk 0:00:42.1]} 27. Rh4 {[%clk 0:00:14.7]}
27... Rc3+ {[%clk 0:00:39.6]} 28. Ke2 {[%clk 0:00:12.4]} 28... Rc2+ {[%clk
0:00:39.7]} 29. Ke3 {[%clk 0:00:12.6]} 29... Rxa2 {[%clk 0:00:39]} 30. Rxh7
{[%clk 0:00:12.8]} 30... Ra3+ {[%clk 0:00:34.2]} 31. Ke2 {[%clk 0:00:12.2]}
31... a5 {[%clk 0:00:20.5]} 32. h4 {[%clk 0:00:11.7]} 32... Ra1 {[%clk
0:00:21.2]} 33. Rh8 {[%clk 0:00:09.5]} 33... a4 {[%clk 0:00:20.6]} 34. g4 {[%clk
0:00:09.1]} 34... Rh1 {[%clk 0:00:19.6]} 35. h5 {[%clk 0:00:09.1]} 35... Rg1
{[%clk 0:00:17.2]} 36. Re8+ {[%clk 0:00:08.9]} 36... Kd7 {[%clk 0:00:16.8]} 37.
Re4 {[%clk 0:00:08.6]} 37... a3 {[%clk 0:00:16]} 38. Ra4 {[%clk 0:00:08.3]}
38... a2 {[%clk 0:00:14.5]} 39. Rxa2 {[%clk 0:00:08.2]} 39... Rxg4 {[%clk
0:00:14.8]} 40. Rd2+ {[%clk 0:00:08]} 40... Ke7 {[%clk 0:00:14.4]} 41. Kf3
{[%clk 0:00:08]} 41... Rh4 {[%clk 0:00:14.5]} 42. Rd5 {[%clk 0:00:07.9]} 42...
Ke6 {[%clk 0:00:14.1]} 43. Rc5 {[%clk 0:00:08.4]} 43... Kd6 {[%clk 0:00:11.4]}
44. Rf5 {[%clk 0:00:08.6]} 44... Ke6 {[%clk 0:00:10.4]} 45. Rc5 {[%clk
0:00:08.1]} 45... Kd6 {[%clk 0:00:08.2]} 46. Rf5 {[%clk 0:00:08.1]} 46... Ke6
{[%clk 0:00:08.7]} 47. Rc5 {[%clk 0:00:08.1]} 1/2-1/2

[Event "Early-Titled-Tuesday-Blitz-March-12-2024"]
[Site "Chess.com"]
[Date "2024.03.12"]
[Round "9"]
[White "AttilaTurzo"]
[Black "enriquebutti"]
[Result "1-0"]
[WhiteElo "2474"]
[BlackElo "2228"]
[TimeControl "180+1"]
[EndTime "9:43:11 PDT"]
[Termination "AttilaTurzo won by resignation"]

1. d4 {[%clk 0:03:00.9]} 1... Nf6 {[%clk 0:02:59.5]} 2. Bf4 {[%clk 0:03:00.3]}
2... g6 {[%clk 0:02:56.7]} 3. Nf3 {[%clk 0:02:59.6]} 3... Bg7 {[%clk 0:02:56.3]}
4. c3 {[%clk 0:02:59.7]} 4... O-O {[%clk 0:02:55.6]} 5. Nbd2 {[%clk 0:03:00.3]}
5... d6 {[%clk 0:02:55.1]} 6. e4 {[%clk 0:03:00.7]} 6... Nc6 {[%clk 0:02:52.9]}
7. h3 {[%clk 0:03:00.5]} 7... Nd7 {[%clk 0:02:51.4]} 8. Be2 {[%clk 0:02:53.9]}
8... e5 {[%clk 0:02:49.3]} 9. dxe5 {[%clk 0:02:54.2]} 9... Ndxe5 {[%clk
0:02:49]} 10. Nxe5 {[%clk 0:02:53.5]} 10... Nxe5 {[%clk 0:02:48.5]} 11. O-O
{[%clk 0:02:53.1]} 11... Be6 {[%clk 0:02:44.1]} 12. Be3 {[%clk 0:02:40.9]} 12...
d5 {[%clk 0:02:40.2]} 13. f4 {[%clk 0:02:35.4]} 13... Nc6 {[%clk 0:02:38.4]} 14.
f5 {[%clk 0:02:24.9]} 14... Bc8 {[%clk 0:02:37]} 15. exd5 {[%clk 0:02:16.6]}
15... Re8 {[%clk 0:02:29.7]} 16. fxg6 {[%clk 0:02:10]} 16... hxg6 {[%clk
0:02:22.8]} 17. Nc4 {[%clk 0:01:56.9]} 17... Ne5 {[%clk 0:02:12.3]} 18. Nxe5
{[%clk 0:01:39.6]} 18... Rxe5 {[%clk 0:02:10.3]} 19. Bd4 {[%clk 0:01:22]} 19...
Rxd5 {[%clk 0:02:08.2]} 20. Bc4 {[%clk 0:01:19.1]} 20... Bxd4+ {[%clk
0:01:56.8]} 21. Kh1 {[%clk 0:01:04.6]} 21... Rf5 {[%clk 0:01:47.6]} 22. cxd4
{[%clk 0:00:57.5]} 22... Qg5 {[%clk 0:01:30]} 23. Qb3 {[%clk 0:00:53.4]} 23...
Qh4 {[%clk 0:01:07.9]} 24. Bxf7+ {[%clk 0:00:43.8]} 24... Kg7 {[%clk 0:01:06.9]}
25. Be6 {[%clk 0:00:40.9]} 25... Bxe6 {[%clk 0:00:55.6]} 26. Qxe6 {[%clk
0:00:41.5]} 26... Qxd4 {[%clk 0:00:55]} 27. Rxf5 {[%clk 0:00:31.4]} 27... gxf5
{[%clk 0:00:53.8]} 28. Qxf5 {[%clk 0:00:31.4]} 28... Rf8 {[%clk 0:00:47.3]} 29.
Qg5+ {[%clk 0:00:26.1]} 29... Kh7 {[%clk 0:00:43.4]} 30. Re1 {[%clk 0:00:20.4]}
30... Rf7 {[%clk 0:00:39.1]} 31. Qh5+ {[%clk 0:00:17.1]} 31... Kg7 {[%clk
0:00:37.7]} 32. b3 {[%clk 0:00:14.5]} 32... Qf2 {[%clk 0:00:26]} 33. Qe5+ {[%clk
0:00:13.4]} 33... Kh7 {[%clk 0:00:24.9]} 34. Re4 {[%clk 0:00:12.5]} 34... Qf6
{[%clk 0:00:21.4]} 35. Qh5+ {[%clk 0:00:11.9]} 35... Kg7 {[%clk 0:00:20.2]} 36.
Rg4+ {[%clk 0:00:11.6]} 36... Kf8 {[%clk 0:00:19.8]} 37. Qc5+ {[%clk 0:00:11.3]}
37... Qe7 {[%clk 0:00:18.1]} 38. Qc1 {[%clk 0:00:10.1]} 38... Qe2 {[%clk
0:00:15.5]} 39. Qh6+ {[%clk 0:00:09.8]} 39... Ke7 {[%clk 0:00:14.9]} 40. Qg5+
{[%clk 0:00:08.7]} 40... Kd7 {[%clk 0:00:14.2]} 41. Rd4+ {[%clk 0:00:08.9]}
41... Ke6 {[%clk 0:00:10.3]} 42. Qg6+ {[%clk 0:00:08.1]} 42... Rf6 {[%clk
0:00:09.6]} 43. Qe8+ {[%clk 0:00:07.6]} 1-0

[Event "Early-Titled-Tuesday-Blitz-March-12-2024"]
[Site "Chess.com"]
[Date "2024.03.12"]
[Round "9"]
[White "Lady_Nika"]
[Black "HATilay"]
[Result "1-0"]
[WhiteElo "2552"]
[BlackElo "2676"]
[TimeControl "180+1"]
[EndTime "9:43:13 PDT"]
[Termination "Lady_Nika won by checkmate"]

1. d4 {[%clk 0:03:00.9]} 1... d5 {[%clk 0:03:00]} 2. e3 {[%clk 0:03:01.1]} 2...
c5 {[%clk 0:02:56.7]} 3. f4 {[%clk 0:03:01.2]} 3... Nc6 {[%clk 0:02:57.1]} 4.
Nf3 {[%clk 0:03:01.4]} 4... Nf6 {[%clk 0:02:57.7]} 5. c3 {[%clk 0:03:01.6]} 5...
Bf5 {[%clk 0:02:58.2]} 6. Bd3 {[%clk 0:03:01.9]} 6... Bxd3 {[%clk 0:02:58.1]} 7.
Qxd3 {[%clk 0:03:02.8]} 7... e6 {[%clk 0:02:58.5]} 8. O-O {[%clk 0:03:03.1]}
8... Ne4 {[%clk 0:02:58.7]} 9. Nbd2 {[%clk 0:03:03.1]} 9... f5 {[%clk
0:02:59.4]} 10. Ne5 {[%clk 0:03:03.5]} 10... Be7 {[%clk 0:02:52.6]} 11. Nxe4
{[%clk 0:03:02.3]} 11... fxe4 {[%clk 0:02:52]} 12. Qb5 {[%clk 0:03:02.2]} 12...
Qb6 {[%clk 0:02:47.4]} 13. Qe2 {[%clk 0:02:58.8]} 13... Bf6 {[%clk 0:02:16.8]}
14. b3 {[%clk 0:02:48.7]} 14... Qa5 {[%clk 0:01:52.7]} 15. Bd2 {[%clk
0:02:37.7]} 15... Qc7 {[%clk 0:01:47.8]} 16. Qg4 {[%clk 0:02:26.6]} 16... Qe7
{[%clk 0:01:38.6]} 17. Be1 {[%clk 0:02:23.1]} 17... O-O {[%clk 0:01:38.1]} 18.
Bg3 {[%clk 0:02:22.6]} 18... Qe8 {[%clk 0:01:15.7]} 19. h4 {[%clk 0:02:19.4]}
19... Bxe5 {[%clk 0:01:05.8]} 20. fxe5 {[%clk 0:02:16.1]} 20... Qg6 {[%clk
0:01:05.8]} 21. Qh3 {[%clk 0:02:10.1]} 21... h5 {[%clk 0:01:05.9]} 22. Bf4
{[%clk 0:02:00.5]} 22... Ne7 {[%clk 0:01:05.9]} 23. Bg5 {[%clk 0:01:59.4]} 23...
Nf5 {[%clk 0:01:05.9]} 24. dxc5 {[%clk 0:01:58.9]} 24... Rac8 {[%clk 0:01:03.3]}
25. b4 {[%clk 0:01:58.8]} 25... b6 {[%clk 0:01:03.6]} 26. a4 {[%clk 0:01:44.3]}
26... bxc5 {[%clk 0:01:02.7]} 27. b5 {[%clk 0:01:44.2]} 27... Rf7 {[%clk
0:00:37.7]} 28. Rf4 {[%clk 0:01:43.8]} 28... Rcf8 {[%clk 0:00:24.1]} 29. Raf1
{[%clk 0:01:43.1]} 29... Kh7 {[%clk 0:00:17.4]} 30. g4 {[%clk 0:01:29.8]} 30...
hxg4 {[%clk 0:00:17.2]} 31. Rxg4 {[%clk 0:01:28.9]} 31... Nh6 {[%clk 0:00:08.2]}
32. Rgf4 {[%clk 0:01:19.2]} 32... Rxf4 {[%clk 0:00:07.6]} 33. exf4 {[%clk
0:01:17]} 33... Qh5 {[%clk 0:00:05.4]} 34. Qxe6 {[%clk 0:01:14.3]} 34... Ng4
{[%clk 0:00:05.3]} 35. Qxd5 {[%clk 0:01:11.3]} 35... e3 {[%clk 0:00:05.6]} 36.
Qe4+ {[%clk 0:01:11]} 36... Kh8 {[%clk 0:00:05.4]} 37. e6 {[%clk 0:01:06.8]}
37... Re8 {[%clk 0:00:03.5]} 38. e7 {[%clk 0:01:06.7]} 38... e2 {[%clk
0:00:02.5]} 39. Qxe2 {[%clk 0:01:06.5]} 39... c4 {[%clk 0:00:02.8]} 40. Rd1
{[%clk 0:01:06.7]} 40... Kh7 {[%clk 0:00:02.4]} 41. Rd8 {[%clk 0:01:06.5]} 41...
Qg6 {[%clk 0:00:01.7]} 42. Qxg4 {[%clk 0:01:06]} 42... Qb1+ {[%clk 0:00:02.4]}
43. Rd1 {[%clk 0:01:05.9]} 43... Qg6 {[%clk 0:00:02.2]} 44. f5 {[%clk 0:01:06]}
44... Qb6+ {[%clk 0:00:02.4]} 45. Kh1 {[%clk 0:01:04.6]} 45... Qb7+ {[%clk
0:00:02.6]} 46. Qg2 {[%clk 0:01:04.8]} 46... Qc7 {[%clk 0:00:03.1]} 47. Rd8
{[%clk 0:01:02.9]} 47... Qe5 {[%clk 0:00:02.6]} 48. Rxe8 {[%clk 0:01:00.5]}
48... Qe1+ {[%clk 0:00:03.1]} 49. Kh2 {[%clk 0:00:58.2]} 49... Qe5+ {[%clk
0:00:03.8]} 50. Kg1 {[%clk 0:00:58.6]} 50... Qe1+ {[%clk 0:00:04]} 51. Qf1
{[%clk 0:00:53.1]} 51... Qg3+ {[%clk 0:00:03.8]} 52. Kh1 {[%clk 0:00:53.5]}
52... Qg4 {[%clk 0:00:02.1]} 53. Rh8+ {[%clk 0:00:53.3]} 53... Kxh8 {[%clk
0:00:02.6]} 54. e8=Q+ {[%clk 0:00:53.5]} 54... Kh7 {[%clk 0:00:03.5]} 55. Qg6+
{[%clk 0:00:53.4]} 55... Kh8 {[%clk 0:00:04.2]} 56. Qe8+ {[%clk 0:00:46.8]}
56... Kh7 {[%clk 0:00:04.2]} 57. Qee2 {[%clk 0:00:46.7]} 57... Qg3 {[%clk
0:00:01.7]} 58. Qh5+ {[%clk 0:00:46.4]} 58... Kg8 {[%clk 0:00:01.7]} 59. Qxc4+
{[%clk 0:00:45.4]} 59... Kf8 {[%clk 0:00:01.7]} 60. Qcf7# {[%clk 0:00:45.3]} 1-0

[Event "Early-Titled-Tuesday-Blitz-March-12-2024"]
[Site "Chess.com"]
[Date "2024.03.12"]
[Round "9"]
[White "IsaqueGoncalvesSanto"]
[Black "Ati1517"]
[Result "0-1"]
[WhiteElo "1815"]
[BlackElo "2224"]
[TimeControl "180+1"]
[EndTime "9:43:13 PDT"]
[Termination "Ati1517 won on time"]

1. d4 {[%clk 0:03:00.9]} 1... Nf6 {[%clk 0:02:44.7]} 2. c4 {[%clk 0:03:00.8]}
2... g6 {[%clk 0:02:43.9]} 3. Nc3 {[%clk 0:03:00.1]} 3... Bg7 {[%clk 0:02:44.2]}
4. e4 {[%clk 0:02:59.8]} 4... d6 {[%clk 0:02:44.6]} 5. f3 {[%clk 0:02:58.4]}
5... O-O {[%clk 0:02:44.9]} 6. Be3 {[%clk 0:02:58]} 6... e5 {[%clk 0:02:45.3]}
7. d5 {[%clk 0:02:57.7]} 7... Nbd7 {[%clk 0:02:44.8]} 8. Qd2 {[%clk 0:02:57.8]}
8... b6 {[%clk 0:02:45.2]} 9. g4 {[%clk 0:02:55.1]} 9... Nc5 {[%clk 0:02:45.2]}
10. h4 {[%clk 0:02:53.4]} 10... h5 {[%clk 0:02:44.7]} 11. g5 {[%clk 0:02:51]}
11... Nh7 {[%clk 0:02:41.7]} 12. Bh3 {[%clk 0:02:45.2]} 12... Bxh3 {[%clk
0:02:38.2]} 13. Nxh3 {[%clk 0:02:45.1]} 13... f5 {[%clk 0:02:38]} 14. gxf6
{[%clk 0:02:43.4]} 14... Qxf6 {[%clk 0:02:37.2]} 15. Ng1 {[%clk 0:02:28.9]}
15... a6 {[%clk 0:02:30]} 16. b4 {[%clk 0:02:17.9]} 16... Nd7 {[%clk 0:02:27.5]}
17. O-O-O {[%clk 0:02:13.8]} 17... a5 {[%clk 0:02:27.5]} 18. b5 {[%clk 0:02:10]}
18... Nc5 {[%clk 0:02:20.1]} 19. Bxc5 {[%clk 0:02:02.5]} 19... bxc5 {[%clk
0:02:18]} 20. a4 {[%clk 0:01:55.4]} 20... Qf4 {[%clk 0:02:12.1]} 21. Qxf4 {[%clk
0:01:54.1]} 21... Rxf4 {[%clk 0:02:11.9]} 22. Nce2 {[%clk 0:01:54.2]} 22... Rf7
{[%clk 0:02:10.9]} 23. Kc2 {[%clk 0:01:40.2]} 23... Raf8 {[%clk 0:02:07.7]} 24.
Rf1 {[%clk 0:01:38]} 24... Bh6 {[%clk 0:02:07.4]} 25. Kd3 {[%clk 0:01:35.2]}
25... Nf6 {[%clk 0:02:05.1]} 26. Nh3 {[%clk 0:01:30.6]} 26... Nd7 {[%clk
0:02:03.2]} 27. Nhg1 {[%clk 0:01:19.8]} 27... Nb6 {[%clk 0:01:54.9]} 28. Ra1
{[%clk 0:01:18.7]} 28... Kg7 {[%clk 0:01:48.1]} 29. Rh3 {[%clk 0:01:17]} 29...
Rf6 {[%clk 0:01:08.4]} 30. Nc3 {[%clk 0:01:13.4]} 30... Kf7 {[%clk 0:01:03.3]}
31. Nb1 {[%clk 0:01:10.7]} 31... Ke7 {[%clk 0:01:02.2]} 32. Nd2 {[%clk
0:01:10.2]} 32... Rf4 {[%clk 0:00:57.1]} 33. Nb3 {[%clk 0:01:08.7]} 33... Ra8
{[%clk 0:00:39.4]} 34. Ne2 {[%clk 0:00:59]} 34... Rf6 {[%clk 0:00:39.1]} 35. Rg3
{[%clk 0:00:39.2]} 35... Raf8 {[%clk 0:00:32.5]} 36. Ng1 {[%clk 0:00:38.3]}
36... Bf4 {[%clk 0:00:17.5]} 37. Rh3 {[%clk 0:00:37.6]} 37... Ra8 {[%clk
0:00:17.9]} 38. Ne2 {[%clk 0:00:30.9]} 38... Bh6 {[%clk 0:00:16.4]} 39. Ng1
{[%clk 0:00:15.2]} 39... Bg7 {[%clk 0:00:15.2]} 40. Rg3 {[%clk 0:00:13.9]} 40...
Rf4 {[%clk 0:00:14.3]} 41. Rxg6 {[%clk 0:00:12.1]} 41... Bf6 {[%clk 0:00:14.4]}
42. Rh6 {[%clk 0:00:10.6]} 42... Rxh4 {[%clk 0:00:14.4]} 43. Rh7+ {[%clk
0:00:10.7]} 43... Kf8 {[%clk 0:00:13.1]} 44. Rxc7 {[%clk 0:00:09.8]} 44... Rh2
{[%clk 0:00:13.1]} 45. Rb7 {[%clk 0:00:08]} 45... Nc8 {[%clk 0:00:12.2]} 46. Rc7
{[%clk 0:00:05.2]} 46... Rb2 {[%clk 0:00:11.6]} 47. Nxa5 {[%clk 0:00:04.5]}
47... Bd8 {[%clk 0:00:10.1]} 0-1

[Event "Early-Titled-Tuesday-Blitz-March-12-2024"]
[Site "Chess.com"]
[Date "2024.03.12"]
[Round "9"]
[White "Byniolus"]
[Black "vi_pranav"]
[Result "0-1"]
[WhiteElo "2825"]
[BlackElo "3035"]
[TimeControl "180+1"]
[EndTime "9:43:17 PDT"]
[Termination "vi_pranav won on time"]

1. d4 {[%clk 0:03:00.9]} 1... Nf6 {[%clk 0:02:58.2]} 2. Nf3 {[%clk 0:03:01]}
2... e6 {[%clk 0:02:58.6]} 3. Bf4 {[%clk 0:03:00.9]} 3... b6 {[%clk 0:02:58.5]}
4. e3 {[%clk 0:03:01.1]} 4... Bb7 {[%clk 0:02:59.2]} 5. h3 {[%clk 0:03:01.2]}
5... Bd6 {[%clk 0:02:59.7]} 6. Bxd6 {[%clk 0:03:00.9]} 6... cxd6 {[%clk
0:03:00.6]} 7. Nbd2 {[%clk 0:03:01.4]} 7... O-O {[%clk 0:03:01.3]} 8. Bd3 {[%clk
0:02:54.9]} 8... Nc6 {[%clk 0:03:01.3]} 9. O-O {[%clk 0:02:52.8]} 9... Nb4
{[%clk 0:02:58.5]} 10. Be2 {[%clk 0:02:52.8]} 10... Re8 {[%clk 0:02:56.6]} 11.
a3 {[%clk 0:02:52.7]} 11... Nc6 {[%clk 0:02:56.7]} 12. Rc1 {[%clk 0:02:49.5]}
12... d5 {[%clk 0:02:56.2]} 13. c4 {[%clk 0:02:49.7]} 13... dxc4 {[%clk
0:02:56.1]} 14. Nxc4 {[%clk 0:02:50.6]} 14... d6 {[%clk 0:02:56.3]} 15. Qb3
{[%clk 0:02:39]} 15... Qe7 {[%clk 0:02:53.1]} 16. Rc2 {[%clk 0:02:33.4]} 16...
Rac8 {[%clk 0:02:32.5]} 17. Rfc1 {[%clk 0:02:32]} 17... Nb8 {[%clk 0:02:30.2]}
18. Ncd2 {[%clk 0:02:02]} 18... Rxc2 {[%clk 0:02:17.9]} 19. Qxc2 {[%clk
0:02:01.7]} 19... Qd7 {[%clk 0:01:56.2]} 20. Bd3 {[%clk 0:01:43]} 20... h6
{[%clk 0:01:49.5]} 21. Qd1 {[%clk 0:01:34.9]} 21... Nc6 {[%clk 0:01:43.6]} 22.
Rc2 {[%clk 0:01:21.9]} 22... Ne7 {[%clk 0:01:36.8]} 23. Qc1 {[%clk 0:01:19.2]}
23... Bc6 {[%clk 0:01:35.8]} 24. Ne1 {[%clk 0:01:07.8]} 24... Rd8 {[%clk
0:01:31.4]} 25. b3 {[%clk 0:00:58.9]} 25... Ne8 {[%clk 0:01:26.3]} 26. Nb1
{[%clk 0:00:56.6]} 26... e5 {[%clk 0:01:25.1]} 27. Nc3 {[%clk 0:00:54]} 27...
Nf6 {[%clk 0:01:10.8]} 28. a4 {[%clk 0:00:44.4]} 28... exd4 {[%clk 0:00:54]} 29.
exd4 {[%clk 0:00:45.3]} 29... Nf5 {[%clk 0:00:49.2]} 30. Qf4 {[%clk 0:00:24.4]}
30... Ne7 {[%clk 0:00:48.9]} 31. Bb5 {[%clk 0:00:21.1]} 31... Bxb5 {[%clk
0:00:46]} 32. Nxb5 {[%clk 0:00:22]} 32... Ned5 {[%clk 0:00:46.3]} 33. Qf3 {[%clk
0:00:17.8]} 33... Re8 {[%clk 0:00:40.5]} 34. Kf1 {[%clk 0:00:17.6]} 34... Ne4
{[%clk 0:00:33.9]} 35. Re2 {[%clk 0:00:10.5]} 35... f5 {[%clk 0:00:33.5]} 36.
Nd3 {[%clk 0:00:07.2]} 36... Rc8 {[%clk 0:00:23.4]} 37. Kg1 {[%clk 0:00:05.8]}
37... a6 {[%clk 0:00:19.2]} 38. Na3 {[%clk 0:00:04.8]} 38... Rc3 {[%clk
0:00:19.8]} 39. Nc4 {[%clk 0:00:03.9]} 39... Rxb3 {[%clk 0:00:18.7]} 40. Kh2
{[%clk 0:00:03.6]} 40... Nb4 {[%clk 0:00:10.8]} 41. Nde5 {[%clk 0:00:01.4]}
41... Rxf3 {[%clk 0:00:06.5]} 42. Nxd7 {[%clk 0:00:02.1]} 42... Rxf2 {[%clk
0:00:07.1]} 43. Rxf2 {[%clk 0:00:02.8]} 43... Nxf2 {[%clk 0:00:08]} 44. Nxd6
{[%clk 0:00:02.3]} 44... Nd5 {[%clk 0:00:08.2]} 45. Nxf5 {[%clk 0:00:01.5]}
45... Nd3 {[%clk 0:00:07.6]} 46. Nd6 {[%clk 0:00:01.6]} 46... Nb2 {[%clk
0:00:07.6]} 0-1